[Event "FIDE Zonal 4-2 Open 2023"]
[Site "Dimbroko"]
[Date "2023.03.29"]
[Round "6.2"]
[White "Thomas, Saah"]
[Black "Cogan, Nicolas"]
[Result "0-1"]
[ECO "B23"]
[WhiteElo "1916"]
[BlackElo "2013"]
[Annotator "TA"]
[PlyCount "146"]
[EventDate "2023.03.25"]
[EventType "swiss"]
[EventCountry "IVO"]
[SourceTitle "playchess.com"]
[Source "ChessBase"]
[SourceQuality "1"]
[TimeControl "40/5400+30:1800+30"]

{[%evp 23,146,-14,-4,-22,-15,-22,-27,-18,0,-52,8,10,15,14,146,0,18,0,0,-140,0,10,14,0,50,53,140,131,136,113,225,59,303,-85,-82,-120,-112,-157,-135,-126,-137,-126,-133,-126,-130,-150,-39,-164,-175,-139,-129,-123,-66,-231,-193,-189,-132,-125,-127,-114,-137,-222,-196,-196,-189,-184,-176,-168,-112,-143,-17,-20,-20,-17,-24,-19,-15,-41,-47,-78,-78,-83,0,-156,-120,-175,-43,-111,-101,-166,-229,-271,-136,-147,-122,-228,-230,-229,-229,-221,-212,-270,-254,-241,-160,-314,-289,-386,-285,-770,-728,-29972,-29973,-29971,-29972,-29980,-29977,-29985,-29986,-29983,-29983,-29994,-29995,-29995,-29996]} 1. e4 {[%emt 0:00:04]} c5 {[%emt 0:00:02]} 2. Nc3 {[%emt 0:00:08]} Nc6 {[%emt 0:00:14]} 3. f4 {[%emt 0:00:11]} g6 {[%emt 0:00:15]} 4. Bc4 {[%emt 0:00:09]} Bg7 {[%emt 0:00:11]} 5. Nf3 {[%emt 0:00:06]} e6 {[%emt 0:00:04]} 6. O-O {[%emt 0:00:22]} Nge7 {[%emt 0:00:14]} 7. Qe1 {[%emt 0:01:26]} O-O {[%emt 0:02:27]} 8. d3 {[%emt 0:00:20]} Nd4 {[%emt 0:01:57]} 9. Nxd4 {[%emt 0:00:52]} cxd4 {[%emt 0:00:19]} 10. Ne2 {[%emt 0:02:19]} d5 {[%emt 0:00:13]} 11. Bb3 {[%emt 0:00:28]} dxe4 {[%emt 0:01:00]} 12. dxe4 {[%emt 0:00:02]} b6 {[%emt 0:02:56]} 13. Ng3 {[%emt 0:00:43] B23: Closed Sicilian: Lines without g3.} a5 {[%emt 0:10:07]} 14. a4 {[%emt 0:01:01]} Qc7 {[%emt 0:13:47]} 15. Bd2 {[%emt 0:01:11] [#] Black has an edge.} h5 $146 {[%emt 0:24:27]} ({Predecessor:} 15... Qc6 16. Rf3 Bd7 17. Kh1 Rad8 18. Qf1 Qb7 19. Qd3 Bc6 20. Rf2 Bd7 21. Re1 Bc8 {1-0 Woloch,O (1706)-Zolkiewski,J (1489) POL Olympiad U14 2013 (5.5)}) 16. Rd1 {[%emt 0:01:35]} (16. f5 $11 exf5 17. Bg5) 16... h4 {[%emt 0:05:26]} (16... Qc6 $15) 17. Nh1 $11 {[%emt 0:00:41]} Bb7 {[%emt 0:00:49][%cal Oh4h3]} 18. Rf3 {[%emt 0:00:35]} Qc6 {[%emt 0:03:54]} (18... Rfe8 $11) 19. Nf2 {[%emt 0:00:13]} (19. Qxh4 $16 Qxe4 20. Qxe7) 19... b5 {[%emt 0:04:50]} 20. axb5 {[%emt 0:02:09]} Qxb5 {[%emt 0:00:15]} 21. Ng4 {[%emt 0:00:27]} (21. Ba2 $11 {remains equal.}) 21... Qh5 {[%emt 0:03:19]} (21... a4 $17 22. Ba2 (22. Rh3 $2 axb3 23. c4 dxc3 $19) 22... Qxb2) 22. h3 {[%emt 0:00:40]} Rfc8 {[%emt 0:08:50] White must now prevent ...a4.} 23. Ra1 {[%emt 0:01:57]} Rc5 {[%emt 0:05:12]} (23... Nf5 $1 $11) 24. Nf2 $14 {[%emt 0:02:07]} Kh8 {[%emt 0:08:37]} (24... Rcc8 $14) 25. Nd3 {[%emt 0:00:12] f5 would be deadly.} Rcc8 {[%emt 0:00:38]} 26. Rf2 {[%emt 0:00:15]} (26. Rxa5 $6 Rxa5 27. Bxa5 Bxe4 28. Qxe4 Qxa5 $11) 26... Kg8 {[%emt 0:01:41]} (26... Bc6 $16) 27. Ra3 $2 {[%emt 0:02:22]} (27. Rxa5 Rxa5 28. Bxa5 Bxe4 $11) (27. f5 $1 $18) 27... Bc6 $2 {[%emt 0:01:30]} (27... Bf6 $14) 28. e5 $2 {[%emt 0:01:19]} (28. Rxa5 Rxa5 29. Bxa5 Bxe4 $11) (28. f5 $1 $18) 28... a4 $1 $17 {[%emt 0:00:42]} 29. Ba2 {[%emt 0:01:05][%cal Of4f5]} Nf5 {[%emt 0:00:28]} 30. b4 {[%emt 0:01:54]} Bb5 {[%emt 0:00:33]} 31. Nc5 {[%emt 0:00:31]} Ng3 {[%emt 0:00:31]} 32. Raf3 {[%emt 0:00:55]} Rd8 {[%emt 0:00:30]} 33. Nb7 {[%emt 0:01:17]} Rd7 {[%emt 0:00:29]} 34. Nd6 {[%emt 0:00:03] [#]} Bc6 {[%emt 0:00:14] Some like it hot} ({Black should play} 34... Rxd6 $1 $17 35. exd6 Rc8) 35. Rd3 {[%emt 0:00:25] [#]} ({White must play} 35. c4 $1 $15) 35... Rxd6 $1 $19 {[%emt 0:00:44][%mdl 512]} 36. exd6 {[%emt 0:00:03]} Ne4 {[%emt 0:00:16]} 37. Rf1 {[%emt 0:05:36]} Nxd6 {[%emt 0:00:32]} (37... Rd8 $17 38. Ra3 Qb5) 38. Qd1 $2 {[%emt 0:00:44] White is weak on the light squares} (38. Bxe6 $2 Re8 39. Bg4 Rxe1 $19) ({Only move:} 38. c4 $1 $15) 38... Qf5 {[%emt 0:00:45]} 39. Be1 {[%emt 0:01:35]} Be4 {[%emt 0:00:28] Prevents c4} ({Better is} 39... Bb5 $19 40. Bxh4 Bxd3 41. Qxd3 Rc8) 40. Bxh4 $17 {[%emt 0:02:49][%cal Oh4e7]} Bxd3 {[%emt 0:00:25]} 41. cxd3 {[%emt 0:30:03]} Qb5 {[%emt 0:03:05] And now ...Nf5 would win.} 42. Qd2 {[%emt 0:00:00]} (42. g4 $17 {was necessary.}) 42... Rc8 {[%emt 0:22:27]} 43. Be7 {[%emt 0:00:00]} Nf5 {[%emt 0:00:21]} 44. Bc4 {[%emt 0:00:00]} Qb7 {[%emt 0:00:26]} 45. Bc5 {[%emt 0:00:00]} Bf8 {[%emt 0:06:50]} (45... Ra8 $19 46. Rf2 Ne3) 46. Bxf8 {[%emt 0:00:00]} Kxf8 {[%emt 0:00:00]} (46... Rxf8 $17 47. b5 Ne3) 47. b5 $1 $11 {[%emt 0:00:00]} Ne3 {[%emt 0:00:00]} 48. Qb4+ $1 {[%emt 0:00:00]} Kg8 {[%emt 0:00:00][%csl Ge3][%cal Rb7g2]} 49. Rf2 {[%emt 0:00:00]} Nd1 {[%emt 0:00:33]} 50. Rd2 {[%emt 0:00:00]} Nc3 {[%emt 0:00:13]} 51. Rb2 {[%emt 0:00:00]} Qb6 $36 {[%emt 0:00:34][%mdl 2048] Keeping White busy. Black has more active pieces.} 52. Qe7 {[%emt 0:00:00][%cal Of4f5]} Ra8 {[%emt 0:01:37]} (52... Qc7 $17 53. Qxc7 {[%mdl 64] Remove Defender} Rxc7) 53. Qa3 {[%emt 0:00:00]} (53. f5 $11 gxf5 54. Qg5+ Kf8 55. Rf2) 53... Ra5 {[%emt 0:00:29]} 54. g4 {[%emt 0:00:00]} (54. Rf2 $17) 54... Ra8 {[%emt 0:00:30]} (54... Nxb5 55. Qb4 $11 (55. Qe7 $2 a3 $17)) (54... Qb8 $19 55. Rf2 Nd1) 55. Rg2 {[%emt 0:00:00]} (55. f5 $1 $15) 55... Nxb5 {[%emt 0:00:27]} 56. Qe7 {[%emt 0:00:00]} (56. Qb4 $17 {was the only defense.} Rb8 57. Qxa4) 56... Nd6 {[%emt 0:00:36]} (56... Qd6 $142 57. Qxd6 Nxd6) 57. Ba2 {[%emt 0:00:00][%cal Of4f5]} Qd8 {[%emt 0:00:27]} ({Black should try} 57... Kg7 $19 {Hoping for ...Rc8.} 58. Re2 (58. Bxe6 $2 Re8 $19 {[%mdl 64] Skewer}) 58... Ra7) 58. Qxd8+ $17 {[%emt 0:00:00]} Rxd8 {[%emt 0:00:00][%mdl 4096] Endgame KRB-KRN} 59. f5 {[%emt 0:00:00]} exf5 $19 {[%emt 0:00:22]} 60. gxf5 {[%emt 0:00:00]} Kg7 {[%emt 0:00:28]} (60... Nxf5 61. Rxg6+ Kh7 62. Ra6 $11) 61. fxg6 {[%emt 0:00:00]} fxg6 {[%emt 0:00:01]} 62. Kf2 {[%emt 0:00:00]} Kf6 {[%emt 0:01:39]} 63. Rg4 {[%emt 0:00:00]} Nf5 {[%emt 0:00:31]} 64. Rg1 $2 {[%emt 0:00:00]} (64. Re4 $17) 64... Rc8 {[%emt 0:00:32] aiming for ...Rc2+.} ({Don't go for} 64... Rh8 $2 65. Ra1 $19) 65. Bd5 {[%emt 0:00:00]} Ke5 {[%emt 0:00:22]} 66. Be4 $2 {[%emt 0:00:00]} (66. Bf7) 66... a3 {[%emt 0:00:25]} 67. Rb1 {[%emt 0:00:00]} Kf4 {[%emt 0:00:42] Black mates.} 68. Ra1 {[%emt 1:23:36]} Rc2+ {[%emt 0:00:30]} 69. Kg1 {[%emt 0:00:00]} Kg3 {[%emt 0:00:29]} 70. Kf1 {[%emt 0:00:00]} Ne3+ {[%emt 0:00:26]} ({Not} 70... Kxh3 71. Rxa3 Ng3+ 72. Ke1 $17) 71. Ke1 {[%emt 0:00:00]} Rf2 {[%emt 0:00:30]} (71... Kxh3 $2 {loses.} 72. Rxa3 g5 73. Ra8 $19) 72. Rc1 {[%emt 0:00:00]} a2 {[%emt 0:00:13]} 73. Bxg6 {[%emt 0:00:00]} Rf1+ {[%emt 0:00:25] A wild game.   Weighted Error Value: White=0.39/Black=0.38} 0-1

[Event "FIDE Zonal 4-2 Open 2023"]
[Site "Dimbroko"]
[Date "2023.03.29"]
[Round "6.3"]
[White "Abdulraheem Abdulrahman Akinto"]
[Black "Ble, Kouko Hubert"]
[Result "1-0"]
[ECO "E38"]
[WhiteElo "2302"]
[BlackElo "1825"]
[Annotator "TA"]
[PlyCount "123"]
[EventDate "2023.03.25"]
[EventType "swiss"]
[EventCountry "IVO"]
[SourceTitle "playchess.com"]
[Source "ChessBase"]
[SourceQuality "1"]
[TimeControl "40/5400+30:1800+30"]

{[%evp 16,123,79,68,87,85,155,143,146,145,156,62,71,52,62,52,64,-68,0,0,0,0,39,29,45,39,97,91,95,99,130,122,112,114,113,110,123,120,111,99,110,93,106,83,83,74,125,81,82,81,82,82,81,81,151,127,217,183,229,283,261,270,253,255,262,222,243,7,7,0,0,0,0,0,0,0,0,0,0,0,0,0,0,0,0,0,0,0,0,0,0,0,0,0,0,0,0,0,0,0,689,681,29979,29978,29978,29979,29981,29982,29984,29985]} 1. d4 {[%emt 0:00:01]} Nf6 {[%emt 0:00:12]} 2. c4 {[%emt 0:00:07]} e6 {[%emt 0:00:08]} 3. Nc3 {[%emt 0:00:08]} Bb4 {[%emt 0:00:08]} 4. Qc2 {[%emt 0:00:06]} c5 {[%emt 0:00:29]} 5. dxc5 {[%emt 0:00:23]} Bxc5 {[%emt 0:07:10]} 6. Nf3 {[%emt 0:00:21]} Nc6 {[%emt 0:00:23]} 7. Bg5 {[%emt 0:00:25]} h6 {[%emt 0:03:32]} 8. Bh4 {[%emt 0:00:29]} g5 {[%emt 0:10:20]} 9. Bg3 {[%emt 0:00:07]} d5 {[%emt 0:02:50] E38: Nimzo-Indian: Classical: 4...c5.} 10. e3 {[%emt 0:00:51] [#]} Bd6 $146 {[%emt 0:13:27]} (10... Qe7 $142) ({Predecessor:} 10... Ne4 11. cxd5 Nxg3 12. hxg3 Nb4 13. Bb5+ Ke7 14. Qd2 Nxd5 15. Rd1 a6 16. Bc4 Nb6 17. Qxd8+ Rxd8 {½-½ Peptan,C (2366)-Doluhanova,E (2278) ROM-chT (Women) 2022 (1.9)}) 11. O-O-O $16 {[%emt 0:01:02][%cal Rc4d5]} Bxg3 {[%emt 0:05:35] White is clearly better.} 12. hxg3 {[%emt 0:00:19]} g4 {[%emt 0:00:07]} 13. Nh4 {[%emt 0:04:08]} (13. Nd4 $16) 13... Bd7 $1 $14 {[%emt 0:01:07]} 14. cxd5 {[%emt 0:06:20]} Nb4 {[%emt 0:08:27][%csl LRc2,LRd5]} 15. Qb3 {[%emt 0:01:36]} Nbxd5 {[%emt 0:44:05]} 16. Bb5 {[%emt 0:10:44]} (16. Qxb7 Nxc3 17. bxc3 O-O $17) ({White should try} 16. Nxd5 $14 Nxd5 17. Bc4) 16... Qc7 {[%emt 0:00:00]} ({Better is} 16... Nxc3 $15 17. bxc3 Qb6 18. Bxd7+ Nxd7) 17. Bxd7+ $11 {[%emt 0:01:59]} Nxd7 {[%emt 0:00:00]} 18. Nf5 {[%emt 0:03:18][%cal Ob3a3,Bh4f5,Bf5d6,Bd6b7,Bb7d6][%mdl 96] Deflection} Nxc3 {[%emt 0:00:00]} (18... O-O-O $5 {[%cal Rd7c5]} 19. Qc2 (19. Nxh6 Nc5 $15) (19. Nd6+ Qxd6 20. e4 Nc5 $15) 19... Nxc3 20. Nd6+ Kb8 21. Qxc3 (21. bxc3 Ne5 $17) 21... Ne5 22. Qxc7+ Kxc7 23. Nb5+ Kb6 $11) 19. Nd6+ {[%emt 0:00:48]} Ke7 {[%emt 0:00:00]} 20. bxc3 {[%emt 0:00:07]} Nc5 {[%emt 0:00:00]} (20... Rad8 $1 $14 21. Nxb7 (21. Qxb7 $2 Qxc3+ 22. Kb1 Rb8 $19) 21... Rb8 22. Qb4+ Kf6 23. Qd4+ Ne5) 21. Qb4 $1 $16 {[%emt 0:01:50] Qf4 would be deadly.} Rad8 {[%emt 0:00:00] [#]} 22. Nxb7 {[%emt 0:14:33][%mdl 64] Pin, Discovered Attack} Rc8 {[%emt 0:00:00]} (22... Rxd1+ 23. Rxd1) 23. Nd6 {[%emt 0:01:10] White is much more active.} (23. Nxc5 $6 Qxc5 24. Kd2 (24. Qxg4 $2 Qxc3+ 25. Kb1 Rb8+) 24... Rhd8+ 25. Ke1 Qxb4 26. cxb4 Rxd1+ 27. Kxd1 Rc4 $11) 23... Rb8 {[%emt 0:00:00]} 24. Qf4 {[%emt 0:03:34]} (24. Qxg4 Qa5 25. Qd4 Ne4 26. Nxe4 (26. Qxe4 $2 Qxc3+ 27. Qc2 Qa3+ 28. Kd2 Rb2 $19) 26... Qa3+ 27. Kc2 (27. Kd2 Rhd8 $17) 27... Rb2+ 28. Kd3 Qa6+ 29. c4 Qa3+ 30. Nc3 Rd8 $15) (24. Nb5 $6 a5 25. Qd4 (25. Qxg4 $2 Rxb5 26. Qh4+ f6 $19) 25... Rxb5 $11) 24... Nb3+ {[%emt 0:00:00][%mdl 64] Discovered Attack} 25. Kc2 $1 {[%emt 0:00:53] Chess con chili.} (25. axb3 $2 Qxc3+ 26. Kb1 Rxb3+ 27. Ka2 Qb2#) 25... Na1+ {[%emt 0:05:00][%mdl 64] Deflection} 26. Rxa1 {[%emt 0:48:11] White wants to mate with Rad1.} Qxd6 {[%emt 0:00:00]} 27. Qxd6+ {[%emt 0:00:00]} (27. Qxg4 Rhd8 28. Qe2 (28. Rxh6 $2 Qd2#) (28. Rhd1 $2 Qa3 $19) 28... Rdc8 $15) 27... Kxd6 {[%emt 0:00:00][%mdl 4096] Endgame KRR-KRR} 28. Rab1 {[%emt 0:00:00]} Rb6 {[%emt 0:00:00]} 29. Rxb6+ {[%emt 0:00:00]} axb6 {[%emt 0:00:00] KR-KR} 30. Kb3 {[%emt 0:00:00]} Kc5 {[%emt 0:00:00]} (30... h5 $142) 31. Rd1 {[%emt 0:00:00]} h5 {[%emt 0:00:00]} 32. Rd4 {[%emt 0:00:00]} f5 {[%emt 0:00:00]} 33. Rc4+ {[%emt 0:00:00]} Kd5 {[%emt 0:00:00]} 34. Kb4 {[%emt 0:00:00]} e5 {[%emt 0:00:00]} ({Black should play} 34... Ra8 35. Rd4+ Kc6) 35. Kb5 $1 {[%emt 0:00:00][%cal Oa2a4]} Rh6 {[%emt 0:00:00]} (35... h4 $16 36. f3 gxf3 37. gxf3 f4 38. e4+ (38. exf4 $2 h3 $19) 38... Kd6 39. gxh4 (39. Kxb6 $2 fxg3 40. Rc6+ Ke7 $19) 39... Rxh4 40. Kxb6 Rh3) 36. Rb4 {[%emt 0:00:00] aiming for c4+.} Rd6 {[%emt 0:00:00]} (36... Rc6 $142 37. a4 Rxc3 38. Kxb6 Rc6+ 39. Kb7 Re6) 37. c4+ $18 {[%emt 0:00:00]} Ke6 {[%emt 0:00:00]} 38. Ka6 {[%emt 0:00:00]} Rd2 {[%emt 0:04:16]} 39. Rxb6+ {[%emt 0:00:00]} Kd7 {[%emt 0:00:26] [#]} 40. Kb7 $1 {[%emt 0:00:00] Threatens to win with c5.} Rc2 {[%emt 0:01:27] [#]} 41. Rb5 $2 {[%emt 0:36:23]} ({Only move:} 41. a4 $1 $18) 41... Rxa2 $11 {[%emt 0:03:54]} 42. f4 {[%emt 0:00:00]} exf4 {[%emt 0:04:50]} 43. exf4 {[%emt 0:00:00]} (43. Rxf5 Rb2+ 44. Ka6 fxg3 45. Rxh5 Rxg2 46. Rh7+ Kc6 47. Rh6+ Kc5 $19) 43... Rxg2 {[%emt 0:00:27]} 44. Rxf5 {[%emt 0:00:00]} Rxg3 {[%emt 0:00:30]} 45. Rd5+ {[%emt 0:00:00]} Ke6 {[%emt 0:00:41] Hoping for ...h4.} 46. Rxh5 {[%emt 0:00:00]} Rc3 {[%emt 0:00:29]} 47. c5 {[%emt 0:00:00]} Rb3+ {[%emt 0:05:41]} 48. Kc7 {[%emt 0:00:00]} Rb4 {[%emt 0:01:00]} 49. c6 {[%emt 0:00:00] Strongly threatening Re5+.} Rxf4 {[%emt 0:00:42]} (49... g3 {looks sharper.} 50. Re5+ Kf6 51. Rg5 Rb3) 50. Kb7 {[%emt 0:00:00]} Rb4+ {[%emt 0:00:11]} 51. Kc8 {[%emt 0:00:00]} Rc4 {[%emt 0:04:55]} 52. c7 {[%emt 0:00:00]} g3 {[%emt 0:03:48]} 53. Kb7 {[%emt 0:01:35]} (53. Rg5 $5 Rc3 $8 54. Kb7 Rb3+ 55. Kc6 Rc3+ 56. Kb7 Rb3+ 57. Kc6 Rc3+ 58. Kb7 $11) 53... Rb4+ {[%emt 0:01:36]} (53... g2 $5 54. Rg5 $8 (54. c8=R $2 {loses.} Rb4+ 55. Kc6 g1=Q $19) 54... Rb4+ 55. Kc6 Rc4+ 56. Kb6 Kd7 $11) 54. Kc6 {[%emt 0:00:14]} Rc4+ {[%emt 0:00:30]} 55. Kb6 {[%emt 0:01:10]} (55. Rc5 {gets mated.} Rxc5+ 56. Kxc5 Kd7 57. Kd4 g2 58. c8=R g1=Q+ 59. Kc4 Kxc8 60. Kd3 Kd7 61. Ke2 Kd6 62. Kf3 Ke5 63. Ke2 Ke4 64. Kd2 Qc5 65. Ke1 Ke3 66. Kf1 Qg5 67. Ke1 Qg1#) 55... Kd7 {[%emt 0:00:58]} (55... g2 $5 56. Rg5 $8 Kd6 $11) 56. Rd5+ {[%emt 0:03:56]} Ke6 {[%emt 0:02:17]} 57. Rg5 {[%emt 0:00:09]} Rc3 {[%emt 0:00:08][%mdl 8192] [#]} (57... Kd7 $11) 58. Rxg3 $3 $18 {[%emt 0:00:18][%mdl 576] Promotion} Rc1 {[%emt 0:01:45]} (58... Rxg3 59. c8=Q+) 59. Kb7 {[%emt 0:00:46] White mates.} Rb1+ {[%emt 0:00:02]} 60. Kc8 {[%emt 0:00:14]} Rb5 {[%emt 0:03:34]} 61. Re3+ {[%emt 0:00:27]} Kf7 {[%emt 0:00:14]} 62. Kd7 {[%emt 0:00:15] A superb game by Abdulraheem Abdulrahman Akinto.   Weighted Error Value: White=0.14 (very precise) /Black=0.32} 1-0

[Event "FIDE Zonal 4-2 Open 2023"]
[Site "Dimbroko"]
[Date "2023.03.29"]
[Round "6.4"]
[White "Barcon, Harmon"]
[Black "James, Tondo"]
[Result "1-0"]
[ECO "A34"]
[WhiteElo "1928"]
[BlackElo "1867"]
[Annotator "TA"]
[PlyCount "44"]
[EventDate "2023.03.25"]
[EventType "swiss"]
[EventCountry "IVO"]
[SourceTitle "playchess.com"]
[Source "ChessBase"]
[SourceQuality "1"]
[TimeControl "40/5400+30:1800+30"]

{[%evp 9,44,32,76,74,79,64,56,46,87,29,61,63,58,33,31,32,22,34,98,100,141,136,256,99,416,422,411,428,764,767,755,741,680,691,656,643,618]} 1. Nf3 {[%emt 0:00:09]} c5 {[%emt 0:00:42]} 2. c4 {[%emt 0:00:10]} Nf6 {[%emt 0:00:18]} 3. Nc3 {[%emt 0:00:53]} Nc6 {[%emt 0:00:44]} 4. e3 {[%emt 0:00:48]} d6 {[%emt 0:03:27]} 5. d4 {[%emt 0:01:02]} Bg4 {[%emt 0:00:15] [#]} 6. Be2 $1 {[%emt 0:00:18] A34: Symmetrical English: 2 Nc3, lines with ...d5.} g6 {[%emt 0:01:43]} 7. O-O {[%emt 0:01:13]} Bg7 {[%emt 0:00:26]} 8. h3 {[%emt 0:04:21] White is slightly better.} Bf5 {[%emt 0:03:59] [#]} 9. Bd3 $146 {[%emt 0:07:01]} ({White should try} 9. d5 $16) ({Predecessor:} 9. d5 Na5 10. Nd2 e5 11. b3 O-O 12. Bb2 a6 13. e4 Bd7 14. Qc2 Rb8 15. Rae1 {½-½ Real de Azua,E (2443)-Mahia,G (2366) ARG-ch 89th Saenz Pena 2014 (3)}) 9... O-O {[%emt 0:02:48]} 10. Bxf5 {[%emt 0:00:32]} gxf5 {[%emt 0:00:12]} 11. Qd3 {[%emt 0:12:17]} (11. d5 $5 {[%cal Rd5c6]} Ne5 12. Nxe5 dxe5 13. b3 $14) 11... e6 {[%emt 0:01:20]} 12. Rd1 {[%emt 0:00:24]} cxd4 {[%emt 0:03:32]} 13. exd4 {[%emt 0:00:27]} Nd7 {[%emt 0:03:43]} (13... d5 $14) 14. Bf4 $16 {[%emt 0:01:08]} Qe7 {[%emt 0:00:45]} 15. Re1 {[%emt 0:04:22] aiming for Nd5. White is more active.} a6 {[%emt 0:03:50] [#]} (15... Rfc8 $16 16. Nb5 e5) 16. Rad1 $2 {[%emt 0:00:53]} (16. Nd5 $1 $18 {[%cal Rd5e7] is more deadly.} Qd8 17. Bxd6) 16... Rad8 $2 {[%emt 0:03:26][%mdl 8192] A mistake that costs the game.} (16... Rfe8 $16 {is more resistant.}) 17. Nd5 $18 {[%emt 0:05:34][%mdl 64] Pin, Deflection} Qe8 {[%emt 0:03:45]} 18. Bxd6 {[%emt 0:00:02]} Nde5 {[%emt 0:02:06] Black is weak on the dark squares} (18... Ndb8 $142 19. c5 Rxd6 20. cxd6 Qd8) 19. dxe5 {[%emt 0:01:55]} exd5 {[%emt 0:00:54]} 20. cxd5 {[%emt 0:00:24]} Ne7 {[%emt 0:02:13]} 21. Bxe7 {[%emt 0:01:44]} Qxe7 {[%emt 0:00:55]} 22. Qxf5 {[%emt 0:00:04] Threatens to win with Ng5.} h6 {[%emt 0:01:26] Dodges Ng5.   Weighted Error Value: White=0.18 (very precise) /Black=0.65} 1-0

[Event "FIDE Zonal 4-2 Open 2023"]
[Site "Dimbroko"]
[Date "2023.03.29"]
[Round "6.5"]
[White "Manan, Yoboue Hermann"]
[Black "Kennedy Zinnah Kengo"]
[Result "1-0"]
[ECO "E48"]
[WhiteElo "2015"]
[BlackElo "1785"]
[Annotator "TA"]
[PlyCount "71"]
[EventDate "2023.03.25"]
[EventType "swiss"]
[EventCountry "IVO"]
[SourceTitle "playchess.com"]
[Source "ChessBase"]
[SourceQuality "1"]
[TimeControl "40/5400+30:1800+30"]

{[%evp 20,71,23,12,13,12,22,1,30,20,31,34,15,14,25,6,4,11,67,64,57,57,92,77,88,78,73,85,77,53,38,17,10,0,27,24,28,20,77,-6,535,521,696,699,653,496,496,493,1337,1306,1286,1252,1473,1443]} 1. d4 {[%emt 0:00:05]} Nf6 {[%emt 0:00:20]} 2. c4 {[%emt 0:00:06]} e6 {[%emt 0:00:08]} 3. Nc3 {[%emt 0:00:05]} Bb4 {[%emt 0:00:44]} 4. e3 {[%emt 0:00:06]} O-O {[%emt 0:00:32]} 5. Bd3 {[%emt 0:00:15]} c5 {[%emt 0:01:20]} 6. Nge2 {[%emt 0:00:50]} Nc6 {[%emt 0:03:06]} 7. O-O {[%emt 0:01:05]} d5 {[%emt 0:02:02]} 8. cxd5 {[%emt 0:01:06]} exd5 {[%emt 0:00:34]} 9. a3 {[%emt 0:01:17]} cxd4 {[%emt 0:00:44]} 10. exd4 {[%emt 0:02:20]} Bd6 {[%emt 0:00:09]} 11. h3 {[%emt 0:02:32]} h6 {[%emt 0:00:57] E48: Nimzo-Indian: Rubinstein: 5 Bd3 d5 including 6 Ne2, but excluding 6 a3.} 12. Be3 {[%emt 0:02:10] [#]} a6 $146 {[%emt 0:01:03]} ({Predecessor:} 12... Re8 13. Rc1 a6 14. Bb1 Bf8 15. Nf4 Ne7 16. Qf3 Qd6 17. Ba2 Rd8 18. Nd3 g5 19. Ne5 {0-1 Pacher,M (2442)-Lewtak,D (2380) Lvov Vasylyshyn Memorial 16th 2019 (7)}) 13. Ng3 {[%emt 0:17:08]} Re8 {[%emt 0:10:38] [#] White must now prevent ...Bxg3. The position is equal.} 14. Qf3 {[%emt 0:03:28]} Be6 {[%emt 0:09:54]} 15. b4 {[%emt 0:15:30]} Nh7 {[%emt 0:06:52]} 16. Nf5 {[%emt 0:46:20]} (16. Nxd5 $2 {too greedy.} Bxd5 17. Qxd5 Bxg3 $19) 16... Bf8 {[%emt 0:00:30]} 17. Qg3 {[%emt 0:00:30]} Bxf5 {[%emt 0:00:30]} 18. Bxf5 {[%emt 0:00:30]} Bd6 {[%emt 0:00:30]} (18... g6 $11) 19. Bxh7+ $14 {[%emt 0:00:30]} Kxh7 {[%emt 0:00:30]} 20. Qf3 Qh4 {[%emt 0:00:30]} 21. Rad1 {[%emt 0:01:00]} (21. Qxd5 {looks sharper.} Rad8 22. Qxf7 Nxd4 23. Rad1) 21... Kg8 {[%emt 0:34:31]} 22. Nxd5 {[%emt 0:00:25]} Rad8 {[%emt 0:00:21]} 23. Nc3 {[%emt 0:02:02]} Bb8 {[%emt 0:00:48]} 24. d5 {[%emt 0:02:12]} Ne5 {[%emt 0:01:08]} 25. Qf5 $36 {[%emt 0:00:51][%mdl 2048] White is more active.} Nc4 {[%emt 0:06:42][%csl LRa3,LRe3]} 26. Bd4 {[%emt 0:00:34]} ({But not} 26. Rd4 Nxe3 27. fxe3 Qg3 $17) 26... Be5 {[%emt 0:04:06]} 27. Bxe5 {[%emt 0:00:31]} Rxe5 {[%emt 0:00:46]} 28. Qf3 {[%emt 0:00:02]} Rd6 {[%emt 0:05:49]} (28... b5 $11) 29. Ne2 {[%emt 0:00:55]} (29. a4 $16) 29... Rg5 $2 {[%emt 0:03:21][%mdl 8192] A mistake that costs the game.} (29... Rf6 $11 {and Black is okay.} 30. Qg3 Qxg3 31. Nxg3 Rd6) 30. Rd4 $18 {[%emt 0:00:26] White is clearly winning.} Ne5 {[%emt 0:00:10]} 31. Qe3 {[%emt 0:00:36]} Qh5 {[%emt 0:02:00]} 32. Nf4 {[%emt 0:00:24]} Qf3 {[%emt 0:01:50]} 33. Qxe5 {[%emt 0:00:31]} Rdg6 {[%emt 0:00:06] [#]} (33... Qxg2+ $142 34. Nxg2 Rxe5) 34. Qxg5 $3 {[%emt 0:00:36]} Rxg5 {[%emt 0:00:13]} 35. d6 {[%emt 0:00:24]} Qc3 {[%emt 0:02:36]} 36. Rfd1 {[%emt 0:00:00] A superb game by Manan.   Weighted Error Value: White=0.19 (very precise) /Black=0.49} 1-0